Cogmind - Beta 17.1 @@@ ROGUE MODE // 2026.09.22 @ 18:47:01 Player: TUNDRA Result: Destroyed by H-55 Commando with Gauss Rifle Performance ------------- Evolutions (3) 1500 Regions Visited (7) 1400 Robots Destroyed (86) 430 Value Destroyed (3188) 3188 Prototype IDs (32) 640 Alien Tech Used (0) 0 Bonus (809) 809 TOTAL SCORE: 7967 Bonus ------- High Alert Combat Kills 194 Follower Combat Kills 115 Entered Garrisons 200 Aligned with FarCom 300 Cogmind --------- Core Integrity 0/700 Matter 300/300 Energy 245/280 System Corruption 5% Temperature Cool (0) Movement Walking (325) Ox3 Location -7/Garrison Parts ------- > --- POWER (1) -------- Cooled Ion Engine > --- PROPULSION (2) --- Titanium Leg Potential Leg > --- UTILITY (8) ------ Improved Cooling System High-capacity Storage Unit Armor Integrity Analyzer Weapon Cycler Utility Shielding Backup Plating VII > --- WEAPON (2) ------- Cooled Pulse Rifle > --- INVENTORY (20) --- Light Nuclear Core Enhanced Nuclear Core Cooling System Armor Integrity Analyzer Armor Integrity Analyzer Energy Filter Backup Plating VII Improved Recalibrator Heavy EM Shotgun Lightning Gun Precision Shock Rifle Improved EM Pulse Cannon Plasma Cannon Mini Assault Cannon Peak State ------------ > --- POWER ------------ Enhanced Nuclear Core > --- PROPULSION ------- Potential Leg Potential Leg > --- UTILITY ---------- High-capacity Storage Unit Superbattery Armor Integrity Analyzer Advanced ECM Suite Power Shielding Utility Shielding Hardened Medium Armor Plating Thief Drone Bay > --- WEAPON ----------- Firepult > --- INVENTORY -------- Cooled Ion Engine Cooled Ion Engine Cooled Ion Engine Enhanced Nuclear Core Enhanced Nuclear Core Aluminum Leg Aluminum Leg Titanium Leg Titanium Leg Weight Redist. System Visual Processing Unit Visual Processing Unit Armor Integrity Analyzer Armor Integrity Analyzer Armor Integrity Analyzer Improved Propulsion Shielding Utility Shielding Hardened Medium Armor Plating [Rating: 81] Favorites ----------- Power Enhanced Nuclear Core Engine Light Ion Engine Power Core Enhanced Nuclear Core Propulsion Potential Leg Leg Potential Leg Utility High-capacity Storage Unit Device Cooling System Storage High-capacity Storage Unit Processor Armor Integrity Analyzer Protection Utility Shielding Weapon Improved Spread Laser Energy Gun Improved Spread Laser Energy Cannon Firepult Ballistic Gun Assault Rifle Ballistic Cannon Mini Assault Cannon Build | -11 -10 -10 -10 -9 -8 -7 -7 ------- Run | Yrd Mat Min Exi Min Mat Fac Gar Slots Evolved 6 | . . . . . 4 2 . Power . | . . . . . . . . Propulsion . | . . . . . . . . Utility 6 | . . . . . 4 2 . Weapon . | . . . . . . . . Parts Attached 68 | 7 2 2 8 . 8 41 . Power 7 | 1 . . 1 . 2 3 . Engine 5 | 1 . . 1 . 1 2 . Core 2 | . . . . . 1 1 . Reactor . | . . . . . . . . Propulsion 10 | 2 1 2 2 . . 3 . Treads . | . . . . . . . . Leg 10 | 2 1 2 2 . . 3 . Wheel . | . . . . . . . . Hover . | . . . . . . . . Flight . | . . . . . . . . Utility 34 | 2 . . 4 . 6 22 . Device 13 | . . . 1 . 1 11 . Storage 5 | 2 . . 3 . . . . Processor 2 | . . . . . . 2 . Hackware . | . . . . . . . . Protection 14 | . . . . . 5 9 . Artifact . | . . . . . . . . Weapon 17 | 2 1 . 1 . . 13 . Energy Gun 12 | 1 . . . . . 11 . Energy Cannon 2 | . . . 1 . . 1 . Ballistic Gun 2 | 1 1 . . . . . . Ballistic Cannon 1 | . . . . . . 1 . Launcher . | . . . . . . . . Special Weapon . | . . . . . . . . Impact Weapon . | . . . . . . . . Slashing Weapon . | . . . . . . . . Piercing Weapon . | . . . . . . . . Special Melee Weapon . | . . . . . . . . Unidentified Prototypes 12 | . . . 4 . 1 7 . Parts Lost 18 | . 1 1 . . . 8 8 Power 2 | . . 1 . . . 1 . Propulsion 3 | . . . . . . 1 2 Utility 7 | . . . . . . 4 3 Weapon 6 | . 1 . . . . 2 3 Highest Loss Streak 4 | . 1 1 . . . 2 4 To Critical Strikes . | . . . . . . . . Average Backups 14 | 1 5 8 10 5 10 18 17 Power 1 | . 1 1 . . 2 2 2 Propulsion 1 | . 1 2 2 2 3 1 1 Utility 6 | . 2 4 6 3 4 7 6 Weapon 4 | . 1 1 . . . 6 7 Tool/Special . | . . . . . . . . Unused Backups 32 | . 1 1 6 . . 19 5 Power 6 | . 1 . 1 . . 3 1 Propulsion 5 | . . . . . . 5 . Utility 11 | . . 1 4 . . 3 3 Weapon 10 | . . . 1 . . 8 1 Tool/Special . | . . . . . . . . Average Slot Usage (%) 96 | . 100 90 97 85 86 97 96 Engine 5 | . 14 4 13 14 3 1 7 Core 3 | . . . . . 5 4 . Leg 19 | . 28 28 28 28 18 14 15 Device 13 | . . . 1 14 9 17 25 Storage 18 | . 28 28 26 14 18 15 14 Processor 4 | . . . . . . 7 7 Protection 13 | . . . . . 22 19 11 Energy Gun 7 | . 9 . . . . 10 12 Energy Cannon 2 | . . . 1 14 9 2 . Ballistic Gun 6 | . 18 28 24 . . . . Peak Build Rating 81 | 7 7 8 58 58 73 81 69 Average Rating 49 | 5 6 7 15 58 68 64 62 On Entrance 34 | . 7 7 7 58 58 73 66 Avg Prop Armor Cover (%) . | . . . . . . . . Naked Turns . | . . . . . . . . Heaviest Build 96 | 14 14 13 49 33 89 96 69 Greatest Support 66 | 20 20 20 60 60 66 60 50 Greatest Overweight (x) 3 | . . . 2 . 1 3 3 Average Overweight (x) . | . . . 1 . 1 1 1 Largest Inventory Capacity 20 | 8 8 8 20 5 20 20 20 Average Capacity 17 | 7 8 8 16 5 20 20 20 Most Carried 20 | 3 8 8 13 5 18 20 19 Average Carried 14 | 1 6 8 10 5 10 18 17 Final Capacity 20 | 8 8 8 5 5 20 20 20 Final Carried 19 | 3 8 8 5 5 18 19 14 Class Distribution -------------------- 98% | Mutant Dominant Class ---------------- Mutant | -10/Materials Mutant | -10/Mines Mutant | -10/Exiles Mutant | -9/Mines Mutant | -8/Materials Mutant | -7/Factory Mutant | -7/Garrison Resources | -11 -10 -10 -10 -9 -8 -7 -7 ----------- Run | Yrd Mat Min Exi Min Mat Fac Gar Matter Collected 1854 | 343 116 155 150 10 90 866 124 Remotely . | . . . . . . . . Salvage Created 3390 | 104 217 45 . 70 498 2163 293 Parts 150 | 4 13 3 . 5 28 85 12 Haulers Intercepted 5 | . . . . . 3 2 . Recyclers Shooed 3 | . 2 . . . 1 . . Parts Field Recycled . | . . . . . . . . Retrieved Matter . | . . . . . . . . Parts Self-Destructed . | . . . . . . . . Prevented . | . . . . . . . . Parts Restored . | . . . . . . . . Kills | -11 -10 -10 -10 -9 -8 -7 -7 ------- Run | Yrd Mat Min Exi Min Mat Fac Gar Combat Hostiles Destroyed 63 | . 4 2 . 4 8 38 7 Guns 40 | . 4 2 . . . 28 6 Cannons 4 | . . . . 1 1 2 . AOE 13 | . . . . 3 6 4 . Classes Destroyed 12 | 2 2 1 . . 2 5 . Worker 6 | 2 2 . . . . 2 . Builder 5 | . . . . . 3 2 . Hauler 5 | . . . . . 3 2 . Recycler 3 | 1 . . . . . 2 . Operator 1 | . . . . . . 1 . Drone 1 | . . . . . . 1 . Watcher 3 | . 1 . . . . 2 . Swarmer 11 | . . 1 . 4 4 . 2 Grunt 35 | . 4 1 . . 4 21 5 Sentry 6 | . . . . . . 6 . Hunter 3 | . . . . . . 3 . Programmer 8 | . . . . . . 8 . Best Kill Streak 7 | 2 3 1 . 4 7 4 3 Combat Bots Only 4 | . 2 1 . 4 4 4 3 Max Kills in Single Turn 7 | 1 1 1 . 3 7 2 1 Gunslinging . | . . . . . . . . Exploded 4 | . . . . 2 4 1 . Melee . | . . . . . . . . Uniques/NPCs Destroyed . | . . . . . . . . Combat | -11 -10 -10 -10 -9 -8 -7 -7 -------- Run | Yrd Mat Min Exi Min Mat Fac Gar Hostile Shots Fired 659 | . 27 38 . 2 23 456 113 Missed 237 | . 6 19 . 1 7 175 29 Hits 422 | . 21 19 . 1 16 281 84 Melee 3 | . . . . . . . 3 Projectile 419 | . 21 19 . 1 16 281 81 Critical Strikes 15 | . . 1 . . 2 8 4 Actively Blocked 3 | . . . . . . 1 2 Part Disruptions 2 | . . . . . . 2 . Actively Blocked 1 | . . . . . . 1 . Damage Taken 5033 | . 229 163 . 57 240 3298 1046 Core 770 | . 44 . . 14 . 453 259 Absorbed by Shields 694 | . . . . . . 426 268 Redirected to Shielding 358 | . . . . . 9 311 38 Ignored by Resistances 110 | . . . . . . 110 . Regen/Repaired (Parts) 33 | . . . . . . 33 . Core Remaining (%) 92 | 100 . . . 76 100 . . Volleys Fired 230 | 11 33 9 . 2 6 140 29 Largest 2 | 1 2 2 . 1 1 2 2 Hottest 250 | 50 70 40 . 250 250 250 136 Shots Fired 418 | 11 65 18 . 2 6 264 52 Gun 376 | 11 65 18 . . . 230 52 Cannon 42 | . . . . 2 6 34 . Launcher . | . . . . . . . . Special . | . . . . . . . . Kinetic 67 | . 49 18 . . . . . Thermal 289 | 11 16 . . 2 6 207 47 Explosive . | . . . . . . . . Electromagnetic 62 | . . . . . . 57 5 Robot Hit Streak 21 | 5 10 4 . . 2 21 17 Robot Miss Streak 10 | 2 3 4 . 8 10 8 5 Penetration Max . | . . . . . . . . Secondary Targets 6 | . . . . . . 3 3 Max Gunslinging Chain 1 | . . . . . . 1 1 Shots Hit Robots 313 | 8 42 7 . . 4 215 37 Core Hits 257 | 4 14 4 . 4 22 185 24 Critical Kills . | . . . . . . . . Critical Parts Destroyed . | . . . . . . . . Critical Strikes 9 | . 2 . . . . 3 4 Burn 8 | . 2 . . . . 2 4 Corrupt 1 | . . . . . . 1 . Melee Attacks . | . . . . . . . . Impact . | . . . . . . . . Slashing . | . . . . . . . . Piercing . | . . . . . . . . Sneak Attacks . | . . . . . . . . Combat Hostiles . | . . . . . . . . Follow-up Attacks . | . . . . . . . . Damage Inflicted 7265 | 112 492 77 . 81 536 5201 766 Guns 5028 | 112 492 77 . . . 3581 766 Cannons 665 | . . . . 37 159 469 . Explosions 1534 | . . . . 44 377 1113 . Melee . | . . . . . . . . Ramming 38 | . . . . . . 38 . Kinetic 395 | . 318 77 . . . . . Thermal 6072 | 112 174 . . 81 536 4439 730 Explosive 110 | . . . . . . 110 . Electromagnetic 650 | . . . . . . 614 36 Impact . | . . . . . . . . Slashing . | . . . . . . . . Piercing . | . . . . . . . . Highest Corruption 8 | . . . . . . 8 5 Average Corruption 5 | . . . . . . 5 5 Corruption Purged 10 | . . . . . . 10 . Corruption Blocked . | . . . . . . . . Effects 116 | . . . . . . 105 11 Message Errors 29 | . . . . . . 25 4 Matter Fused 36 | . . . . . . 35 1 Heat Flow Errors 11 | . . . . . . 10 1 Energy Discharges 17 | . . . . . . 15 2 Parts Fused 1 | . . . . . . 1 . Data Loss (minor) 8 | . . . . . . 6 2 Data Loss (major) 5 | . . . . . . 5 . Misfires 4 | . . . . . . 4 . Alerts 3 | . . . . . . 3 . Weapon Failures 2 | . . . . . . 1 1 Overload Shots . | . . . . . . . . Overflow Damage 103 | . . . . . 8 95 . Projectiles 13 | . . . . . 8 5 . Explosions 90 | . . . . . . 90 . Melee . | . . . . . . . . Knockbacks 1 | . . . . . . 1 . Impact 1 | . . . . . . 1 . Kinetic . | . . . . . . . . Secondary . | . . . . . . . . Self-Inflicted Damage 572 | . . . . 51 13 508 . Shots 22 | . . . . 6 1 15 . Rammed . | . . . . . . . . Targets Rammed 4 | . . . . . . 4 . Kicked 4 | . . . . . . 4 . Crushed . | . . . . . . . . Highest Temperature 543 | 72 126 . . 540 513 543 121 Average Temperature 144 | 31 45 . . 268 194 162 26 Received Heat Transfer 1324 | . 126 9 . . 153 757 279 Effects 22 | . . . . 2 5 15 . Shutdowns 8 | . . . . 1 2 5 . Energy Bleed 3 | . . . . 1 2 . . Interference 2 | . . . . . . 2 . Matter Decay 4 | . . . . . . 4 . Short Circuit 1 | . . . . . . 1 . Damage (minor) 1 | . . . . . 1 . . Damage (major) 3 | . . . . . . 3 . Siege Activations . | . . . . . . . . Martial Activations . | . . . . . . . . Shielding Activations . | . . . . . . . . Robots Disrupted 2 | . . . . . . 2 . Combat Hostiles 2 | . . . . . . 2 . Robots Corrupted . | . . . . . . . . Combat Hostiles . | . . . . . . . . Parts Fried 2 | . . . . . . 2 . Impact Corruptions . | . . . . . . . . Robots Melted 7 | . . . . . 1 5 1 Combat Hostiles 6 | . . . . . 1 4 1 Parts Melted 37 | . 2 . . 1 11 20 3 Heat Transferred 15024 | 333 666 . . 400 3120 9143 1362 Parts Sabotaged . | . . . . . . . . Parts Stolen . | . . . . . . . . Parts Stripped . | . . . . . . . . Power Chain Reactions 1 | . . . . . . 1 . Alert | -11 -10 -10 -10 -9 -8 -7 -7 ------- Run | Yrd Mat Min Exi Min Mat Fac Gar Maximum Alert Level 3 | . . . . . 1 3 2 Low Security (%) 61 | 100 100 100 . 100 91 56 . Level 1 18 | . . . . . 8 25 . Level 2 19 | . . . . . . 17 100 Level 3 . | . . . . . . 1 . Level 4 . | . . . . . . . . Level 5 . | . . . . . . . . High Security . | . . . . . . . . Max Security . | . . . . . . . . Peak Influence 707 | 10 41 20 . 96 212 707 634 Initial 494 | . 6 . . . . 88 494 Average 208 | 1 7 3 . 39 60 233 576 Influence Increases 2414 | 15 118 40 . 96 315 1610 220 Destroy 0b10 Robot/C 1320 | . 80 40 . 80 180 800 140 Destroy 0b10 Robot/NC 115 | 15 15 . . . 30 55 . Destroy Leader 356 | . 22 . . 10 26 288 10 Allied During Kill 6 | . . . . . 3 3 . Successful Hack 153 | . . . . . 26 127 . Disable Machine 210 | . . . . . 15 195 . Anti-Garrison Action 50 | . . . . . . . 50 Destroy Structure 114 | . 1 . . 6 20 82 5 Partial Spotted 45 | . . . . . . 45 . Lose Combat Pursuer 45 | . . . . . 15 15 15 Influence Decreases 1780 | 5 128 40 . 96 119 1099 293 Entered New Map 325 | . 4 . . . . 108 213 Time Decay 1115 | 5 114 40 . 96 119 741 . Lost Part 170 | . 10 . . . . 80 80 Lost Ally 20 | . . . . . . 20 . Purge Threat 150 | . . . . . . 150 . Squads Dispatched 30 | . 2 . . . 1 27 . Investigation 13 | . 1 . . . 1 11 . Extermination 7 | . . . . . . 7 . Reinforcement 4 | . 1 . . . . 3 . Assault . | . . . . . . . . Garrison 6 | . . . . . . 6 . Intercept . | . . . . . . . . Searches Triggered . | . . . . . . . . Construction Impeded 3 | . . . . . . 3 . Haulers Reinforced . | . . . . . . . . Active Scanning Responses . | . . . . . . . . Cargo Convoy Interrupts . | . . . . . . . . Stealth | -11 -10 -10 -10 -9 -8 -7 -7 --------- Run | Yrd Mat Min Exi Min Mat Fac Gar Distress Signals 2 | . . . . . 1 1 . Communications Jammed . | . . . . . . . . Distress Signals . | . . . . . . . . Times Spotted 85 | . 8 5 . 1 7 51 13 Peak Tracking Total 5 | . 2 3 . 1 4 4 5 Tactical Retreats 3 | . . . . . 1 1 1 Traps | -11 -10 -10 -10 -9 -8 -7 -7 ------- Run | Yrd Mat Min Exi Min Mat Fac Gar Traps Triggered 10 | . . . . . . 6 4 Indirectly . | . . . . . . . . Trap Hack Attempts . | . . . . . . . . Triggered . | . . . . . . . . Disarmed . | . . . . . . . . Reprogrammed . | . . . . . . . . Reused . | . . . . . . . . Traps Extracted . | . . . . . . . . Installed . | . . . . . . . . Triggered . | . . . . . . . . Machines | -11 -10 -10 -10 -9 -8 -7 -7 ---------- Run | Yrd Mat Min Exi Min Mat Fac Gar Machines Disabled 15 | . . . . . 1 13 1 Max in Single Turn 5 | . . . . . 1 5 1 Garrison Relay 1 | . . . . . . . 1 Machines Repaired . | . . . . . . . . Machines Dismantled . | . . . . . . . . Machines Sabotaged . | . . . . . . . . Overloaded Fab Kills . | . . . . . . . . Hacking | -11 -10 -10 -10 -9 -8 -7 -7 --------- Run | Yrd Mat Min Exi Min Mat Fac Gar Machines Accessed 27 | . . 1 5 . 2 18 1 Terminals 10 | . . . . . 2 7 1 Fabricators 2 | . . . . . . 2 . Repair Stations 3 | . . . . . . 3 . Recycling Units 3 | . . . . . . 3 . Scanalyzers 2 | . . . . . . 2 . Garrison Access 1 | . . . . . . 1 . Total Hacks 116 | . . 1 50 . 5 59 1 Successful 84 | . . 1 50 . 2 31 . Failed 32 | . . . . . 3 28 1 Catastrophic 9 | . . . . . 1 7 1 Database Lockouts . | . . . . . . . . Manual 10 | . 7 . 2 . . 1 . Terminals 24 | . . . . . 5 18 1 Fabricators 7 | . . . . . . 7 . Repair Stations 11 | . . . . . . 11 . Recycling Units 3 | . . . . . . 3 . Scanalyzers 19 | . . . . . . 19 . Garrison Access 1 | . . . . . . 1 . Terminal Hacks 58 | . . 1 50 . 2 5 . Record 51 | . . . 49 . 1 1 . Robot Analysis 1 | . . . . . . 1 . Open Door 1 | . . 1 . . . . . Open DSF 1 | . . . . . . 1 . Unreport Threat 1 | . . . . . . 1 . Locate Traps 1 | . . . . . 1 . . Zone Layout 1 | . . . . . . 1 . Proto ID Catalog 1 | . . . 1 . . . . Fabricator Hacks 1 | . . . . . . 1 . Network Status 1 | . . . . . . 1 . Repair Station Hacks 4 | . . . . . . 4 . Scan Component 3 | . . . . . . 3 . Repair 1 | . . . . . . 1 . Recycling Unit Hacks 3 | . . . . . . 3 . Report Inventory 3 | . . . . . . 3 . Scanalyzer 17 | . . . . . . 17 . Insert Component 7 | . . . . . . 7 . Analyze 7 | . . . . . . 7 . Retrieve Study 3 | . . . . . . 3 . Garrison Access Hacks 1 | . . . . . . 1 . Unlock Access 1 | . . . . . . 1 . Unauthorized Hacks . | . . . . . . . . Terminals . | . . . . . . . . Fabricators . | . . . . . . . . Repair Stations . | . . . . . . . . Recycling Units . | . . . . . . . . Scanalyzers . | . . . . . . . . Garrison Access . | . . . . . . . . Data Cores Recovered 1 | . . . . . . 1 . Used . | . . . . . . . . Hacking Detections 18 | . 1 . . . 2 15 . Full Trace Events 12 | . 1 . . . 1 10 . Feedback Events 3 | . . . . . . 3 . Corruption 3 | . . . . . . 3 . Feedback Blocked . | . . . . . . . . Robot Schematics Acquired . | . . . . . . . . Robots Built . | . . . . . . . . Authchips . | . . . . . . . . Time . | . . . . . . . . Total Robot Build Rating . | . . . . . . . . Part Schematics Acquired 6 | . . . . . . 6 . Parts Built . | . . . . . . . . Authchips . | . . . . . . . . Time . | . . . . . . . . Total Part Build Rating . | . . . . . . . . Part Studies Acquired 3 | . . . . . . 3 . Parts Repaired 1 | . . . . . . 1 . Time 13 | . . . . . . 13 . Parts Recycled . | . . . . . . . . Recycled Matter . | . . . . . . . . Retrieved Matter . | . . . . . . . . Retrieved Components . | . . . . . . . . Parts Scanalyzed 6 | . . . . . . 6 . Part Schematics Acquired 6 | . . . . . . 6 . Parts Damaged 1 | . . . . . . 1 . Bothacking | -11 -10 -10 -10 -9 -8 -7 -7 ------------ Run | Yrd Mat Min Exi Min Mat Fac Gar Used RIF Installer . | . . . . . . . . Robots Hacked . | . . . . . . . . Non-combat . | . . . . . . . . Combat . | . . . . . . . . Robot Hacks Applied . | . . . . . . . . Relay Couplers Released 5 | . . . . . . . 5 Machine Destruction 5 | . . . . . . . 5 Fabnet Peak Effective % . | . . . . . . . . Robots Rewired . | . . . . . . . . Allies Hacked . | . . . . . . . . Hacks Repelled . | . . . . . . . . Allies | -11 -10 -10 -10 -9 -8 -7 -7 -------- Run | Yrd Mat Min Exi Min Mat Fac Gar Total Allies . | . . . . . . . . Largest Group . | . . . . . . . . Highest-Rated Group . | . . . . . . . . Highest-Rated Ally . | . . . . . . . . Total Orders . | . . . . . . . . Ally Attacks 36 | . . . . . 13 23 . Total Damage 164 | . . . . . 62 102 . Kills 3 | . . . . . 1 2 . Allies Corrupted . | . . . . . . . . Allies Melted . | . . . . . . . . Intel | -11 -10 -10 -10 -9 -8 -7 -7 ------- Run | Yrd Mat Min Exi Min Mat Fac Gar Active Infowar (turns) 1571 | . . . . . . 1421 150 Sensors 1462 | . . . . . . 1312 150 ECM 109 | . . . . . . 109 . Robot Analysis Total 1 | . . . . . . 1 . Derelict Logs Recovered 1 | . . . . 1 . . . Drone Launches 10 | . . . . 3 . 7 . Drone Recoveries 7 | . . . . . 2 5 . Exploration | -11 -10 -10 -10 -9 -8 -7 -7 ------------- Run | Yrd Mat Min Exi Min Mat Fac Gar Turns Passed 8067 | 137 441 340 1331 254 439 4641 484 Spaces Moved 3566 | 64 269 251 678 215 220 1666 203 Core 6 | 6 . . . . . . . Treads . | . . . . . . . . Legs 3560 | 58 269 251 678 215 220 1666 203 Wheels . | . . . . . . . . Hover . | . . . . . . . . Flight . | . . . . . . . . Fastest Speed 50 | 50 120 120 90 90 170 170 177 Average Speed 177 | 113 120 120 192 90 170 204 182 Slowest Speed 325 | 120 120 120 260 90 170 325 325 Overloaded Moves . | . . . . . . . . Propulsion Burnouts . | . . . . . . . . Robots Hopped . | . . . . . . . . Potential Cave-ins . | . . . . . . . . Cave-ins Triggered . | . . . . . . . . Exploration Rate (%) 38 | 4 38 50 79 53 29 29 26 Regions Visited 7 Branch Regions 3 Pre-discovered Areas 1 | . . . 1 . . . . Known Exits Taken 1 | . . . . . . 1 . Unknown Exits Taken 6 | 1 1 1 1 1 1 . . Scrap Searched 5 | . . 1 . 4 . . . Spaces Dug . | . . . . . . . . Terrain Destroyed 153 | . . . . 11 18 124 . Melee . | . . . . . . . . Projectile 1 | . . . . 1 . . . AOE 152 | . . . . 10 18 124 . Terrain Rammed . | . . . . . . . . Walls Destroyed . | . . . . . . . . Machines Disabled . | . . . . . . . . Actions | -11 -10 -10 -10 -9 -8 -7 -7 --------- Run | Yrd Mat Min Exi Min Mat Fac Gar Total 4886 | 117 325 275 704 273 278 2637 277 Wait 839 | 26 14 10 . 57 25 690 17 Move 3559 | 63 268 250 677 214 219 1665 203 Hop . | . . . . . . . . Pick Up 78 | 10 7 1 9 . 15 36 . Fast Attach 9 | . . . 1 . 2 6 . Attach 28 | 7 1 . 2 . 3 10 5 Detach 3 | . . . 1 . 1 1 . Swap 55 | . 1 2 5 . 4 43 . Drop 48 | . 1 3 9 . 3 32 . Fire 230 | 11 33 9 . 2 6 140 29 Melee . | . . . . . . . . Ram . | . . . . . . . . Kick 4 | . . . . . . 4 . Crush . | . . . . . . . . Escape Stasis 30 | . . . . . . 10 20 Rewire 3 | . . . . . . . 3 Trap . | . . . . . . . . Miscellaneous . | . . . . . . . . Route ------- -11/Scrapyard -10/Materials -10/Mines (discovered 2 exits: [*Mat] / *Exi) -10/Exiles -9/Mines -8/Materials -7/Factory -7/Garrison History --------- Turn | Location | Event 3 | -11/Scrapyard | Discovered new exit (range 15) 138 | -11/Scrapyard | Entered Materials 300 | -10/Materials | Build established: Mutant 492 | -10/Materials | Discovered new exit (range 6) 579 | -10/Materials | Entered Mines 607 | -10/Mines | Discovered new exit (range 11) 643 | -10/Mines | Found the Drone Emporium 648 | -10/Mines | Found Prototype Device 662 | -10/Mines | Met a Derelict bent on vengeance 911 | -10/Mines | Deemed a non-threat by the Exiles lab entrance 912 | -10/Mines | Discovered new exit (range 5) 919 | -10/Mines | Entered Exiles 963 | -10/Exiles | Met 8R-AWN 989 | -10/Exiles | Met EX-HEX 1154 | -10/Exiles | Met EX-DEC 1217 | -10/Exiles | Visited The Gauntlet 1362 | -10/Exiles | Learned location of Zion (-7) 1505 | -10/Exiles | Discovered new exit (range 14) 1759 | -10/Exiles | Met EX-BIN 1827 | -10/Exiles | Aligned with FarCom system 1830 | -10/Exiles | Given EX-Vault access code 2058 | -10/Exiles | Opened EX-Vault 2069 | -10/Exiles | Found Prototype Leg 2069 | -10/Exiles | Identified Potential Leg 2072 | -10/Exiles | Found Potential Leg 2078 | -10/Exiles | Found Prototype Storage 2078 | -10/Exiles | Identified Superbattery 2082 | -10/Exiles | Found Prototype Energy Cannon 2084 | -10/Exiles | Identified Firepult 2089 | -10/Exiles | Identified Thief Drone Bay 2174 | -10/Exiles | Warned to stay clear of 0b10 Research branches 2250 | -10/Exiles | Stole three prototypes: Superbattery, Potential Leg, Firepult 2250 | -10/Exiles | Entered Mines 2295 | -9/Mines | Learned 2 Materials zone layouts 2364 | -9/Mines | Found a hidden stash of uninstalled traps 2486 | -9/Mines | Discovered new exit (range 18) 2504 | -9/Mines | Entered Materials 2504 | -8/Materials | Accompanied by 3 allies 2504 | -8/Materials | Evolved 4 slots: Utility x4 2926 | -8/Materials | Discovered new exit (range 10) 2943 | -8/Materials | Entered Factory 2943 | -7/Factory | Evolved 2 slots: Utility x2 2945 | -7/Factory | FarCom data flow suspended 3504 | -7/Factory | Repaired Utility Shielding 6294 | -7/Factory | Garrison activated, responded to threat 6338 | -7/Factory | Core integrity fell below 50% 6765 | -7/Factory | Garrison activated, responded to threat 7582 | -7/Factory | Identified exit to Garrison 7584 | -7/Factory | Entered Garrison 7690 | -7/Garrison | Triggered checkpoint 7720 | -7/Garrison | Triggered checkpoint 7811 | -7/Garrison | Garrison Relay disabled 7847 | -7/Garrison | Core integrity fell below 20% 8048 | -7/Garrison | Triggered checkpoint 8068 | -7/Garrison | Destroyed by H-55 Commando with Gauss Rifle Last Messages --------------- 07878_ G#LC#> L1 K|7X3BBXDEGPWHAC8U4 07882_ Acquired 5 matter. 07935_ KFKX#,AEUNG:JKOB26=EWC1P 07963_ System corrupted: Heat flow error (+174). The lore collection interface (ESC then open Records) is a centralized reference of all the lore you've uncovered throughout all runs. 08025_ Acquired 10 matter. 08045_ H-55 Commando suffers critical hit (Burn). 08045_ Slug penetrates Wall. 08048_ Beams of light sweep through the air. An alarm sounds. 08049_ H-55 Commando heat spikes uncontrollably. 08050_ Imp. Titanium Leg+ destroyed. 08052_ Imp. Shield Generator destroyed. 08055_ System corrupted: Component data lost. 08059_ Superbattery destroyed. 08059_ S-27 Virus destroyed. 08059_ Switching to secondary target: S-27 Virus. 08065_ S-27 Virus destroyed. 08065_ Adv. Beam Rifle destroyed. 08068_ Slug penetrates Reinforced Barrier. Map ----- +----------------------------------------------------+ | ??????????????# #??????????????????????????????? | | ??????????????# #??????????????????????????????? | | ??????????????# #??????????????????????????????? | | ??????????????# #??????????????????????????????? | | ??????????????# #??????????????????????????????? | | ??????????????# #??????????????????????????????? | | ??????????????# #??????????????????????????????? | | ###############! ############???????????????????? | | ^ ^^ =!=%%! " #???????????????????? | | ^! !! [*%/ %+" #???????????????????? | | ## !!##### ## #### #### #???????????????????? | | #""" "#??#! [## #??# #??# #???????????????????? | | #######??##/### #??# #??# #???????????????????? | | ??????????# #?# #??# #??# #???????????????????? | | ??????????# #?# #??# #??# #???????????????????? | | ??????????# #?# #??# #??# #???????????????????? | | ??????????# #?# #############""""## #????????? | | ?????????? ?# #????????? | | ??????????###?# ^ #????????? | | ??????????????# ^^ #????????? | | ??????????????############ ## ## #????????? | | ???????????????????????###% ## ## #????????? | | ???????????????????????# "????????? | | ???????????????????????#C "????????? | | ???????????????????????#C "????????? | | ???????????????????????#C@ "????????? | | ???????????????????????### ## ## #????????? | | ??????????????????########h *## #??? ?????????? | | ???????????????# [*%= ???????? | | ???????????????# = ???????? | | ???????????????# ss #????????? | | ???????????????# ############ ## ##????????? | | ???????????????#??????????????? #?????????????? | | ????????????????????????????????####?????????????? | | ?????????????????????????????????????????????????? | | ?????????????????????????????????????????????????? | | ?????????????????????????????????????????????????? | | ?????????????????????????????????????????????????? | | ?????????????????????????????????????????????????? | | ?????????????????????????????????????????????????? | | ?????????????????????????????????????????????????? | | ?????????????????????????????????????????????????? | | ?????????????????????????????????????????????????? | | ?????????????????????????????????????????????????? | | ?????????????????????????????????????????????????? | | ?????????????????????????????????????????????????? | | ?????????????????????????????????????????????????? | | ?????????????????????????????????????????????????? | | ?????????????????????????????????????????????????? | | ?????????????????????????????????????????????????? | +----------------------------------------------------+ Best States ------------- Heat Dissipation 78 Energy Generation 17 Energy Capacity 1800 Matter Stores 450 Matter Capacity 450 Sight Range 16 Robot Scan Range 15 Terrain Scan Density 10 ECM Strength 2 Additional Mass Support 6 Armor Coverage 450 Resistance: TH 10 Power Shielding 33 Propulsion Shielding 66 Utility Shielding 66 Weapon Cycling 15 Evasion (%) 57 Armor Integrity Analysis 30 Item Schematics ----------------- Utility Shielding | -7/Factory | Scanalyzed Titanium Leg | -7/Factory | Scanalyzed Armor Integrity Analyzer | -7/Factory | Scanalyzed Enh. Nuclear Core | -7/Factory | Scanalyzed Hrd. Medium Armor Plating | -7/Factory | Scanalyzed Imp. Propulsion Shielding | -7/Factory | Scanalyzed Robot Schematics ------------------ None Fabricated ------------ Nothing Repaired ---------- Utility Shielding | 34% | -7/Factory Studied --------- Titanium Leg | -7/Factory | Hacked Imp. Titanium Leg | -7/Factory | Hacked Lgt. Nuclear Core | -7/Factory | Hacked Alien Tech Used ----------------- None Achievements -------------- Everything Is Under Control Ew, Corruption Item+ Morally Flexible Party Time Sixth Sense Sprinter Well-fed Force Field Challenges ------------ None Game ------ Seed RainbowTargetingTorch Manual? 0 Play Time 02:03:19 Cumulative 12.1 hours Start 2026.09.21 @ 18:29:52 End 2026.09.22 @ 18:47:01 Sessions 3 Manual Loads 0 Difficulty Rogue Special Mode None Game No. 7 Rogue 7 Adventurer 0 Explorer 0 Win Type - Total 0 Types 0/0/0/0/0/0/0/0/0/0 Lore% 7 Gallery% 10 Achievement% 12 Wizard Run 0 Options --------- Layout 0 ASCII 0 Keyboard 1 Movement Vi Keybinds 0 Fullscreen 1 Font 18/SmallcapsGlow Map View 76x50 Zoom Use 92% Tactical HUD 1 Map Filters NONE Filters NONE Steam 1 RUN: 11ccd9f7-6e43-411b-91c3-0eb7b5af10b2